{"text_format":"1","workbook":"xlsx","n_sheets":6,"sheets":["SolCotizacion","ResumenCotizacion","Consolidado","LISTAS","Cotizacion","CSV"],"not_rendered":{"charts":0,"images":0,"macros":1,"external_links":1,"defined_names":345,"comments":0,"pivot_tables":0},"unopened":[],"bounds":{"document_bytes":16777216,"sheet_cells":100000,"rows_first":2000,"rows_last":500,"rows_between":2000,"halvings":0,"cell_chars":16384,"cell_head_chars":4096},"cells_cut":0,"cells_raw":0,"read":"whole","date_system":"1900"}

{"sheet":"SolCotizacion","index":0,"n_rows":47,"n_cols":17,"rows_kept":47,"cut":false,"hidden":false,"merged":[[37,13,37,14],[36,13,36,14],[38,13,38,14],[38,11,38,12],[21,9,21,12],[22,9,22,12],[23,9,23,12],[24,9,24,12],[37,2,37,5],[36,2,36,5],[28,9,28,12],[29,9,29,12],[30,9,30,12],[28,7,28,8],[29,7,29,8],[34,1,34,3],[29,2,29,6],[30,2,30,6],[36,11,36,12],[37,11,37,12],[37,6,37,7],[37,8,37,9],[11,4,11,8],[13,1,13,3],[13,4,13,8],[15,1,15,15],[17,1,17,2],[17,3,17,4],[11,1,11,3],[9,1,9,3],[9,4,9,8],[7,1,7,3],[7,4,7,8],[0,1,1,15],[5,1,5,3],[5,4,5,8],[5,10,5,11],[3,1,3,15],[5,12,5,15],[7,12,7,15],[9,10,9,11],[7,10,7,11],[9,12,9,15],[44,5,44,6],[42,2,42,6],[43,2,43,6],[41,1,41,7],[19,1,19,2],[19,3,19,4],[32,1,32,11],[21,7,21,8],[23,7,23,8],[26,2,26,6],[27,2,27,6],[28,2,28,6],[21,2,21,6],[22,2,22,6],[23,2,23,6],[24,2,24,6],[25,2,25,6],[36,8,36,9],[25,9,25,12],[26,7,26,8],[22,7,22,8],[25,7,25,8],[27,7,27,8],[24,7,24,8],[36,6,36,7],[30,7,30,8],[26,9,26,12],[27,9,27,12]]}
[null,"Solicitud de Cotización - VIH"]
[]
[null,"Versión: 9","2018-01-03"]
[null,"Información de la Entidad Compradora"]
[]
[null,"Nombre de la Entidad:",null,null,null,null,null,null,null,null,"NIT:"]
[]
[null,"Dirección de la Entidad:",null,null,null,null,null,null,null,null,"Correo de contacto:"]
[]
[null,"Municipio:",null,null,null,null,null,null,null,null,"Teléfono de contacto:"]
[]
[null,"Nombre funcionario Comprador:"]
[]
[]
[]
[null,"Solicitud de Cotización"]
[]
[null,"Región"]
[]
[null,"Meses de Tratamiento"]
[]
[null,"Ref. Servicio","Paquete de atención integral",null,null,null,null,"Modalidad",null,"Número total de Pacientes por mes"]
[null,1,"Paquete I de promoción, prevención y descarte de diagnóstico de VIH-SIDA",null,null,null,null,"NA",null,null,null,null,null,null,null,500,2999]
[null,2,"Paquete II de atención a menores de 18 meses hijos de madres que viven con VIH-SIDA o que tengan criterios clínicos sin conocimiento del estado virológico de la madre",null,null,null,null,"Con medicamentos"]
[null,3,"Paquete II de atención a menores de 18 meses hijos de madres que viven con VIH-SIDA o que tengan criterios clínicos sin conocimiento del estado virológico de la madre",null,null,null,null,"Sin medicamentos"]
[null,4,"Paquete III de atención integral a Pacientes menores de 13 años que viven con VIH-SIDA",null,null,null,null,"Con medicamentos"]
[null,5,"Paquete III de atención integral a Pacientes menores de 13 años que viven con VIH-SIDA",null,null,null,null,"Sin medicamentos"]
[null,6,"Paquete IV de atención ambulatoria para personas que viven con VIH-SIDA mayores de 13 años",null,null,null,null,"Con medicamentos"]
[null,7,"Paquete IV de atención ambulatoria para personas que viven con VIH-SIDA mayores de 13 años",null,null,null,null,"Sin medicamentos"]
[null,8,"Paquete V de atención ambulatoria para gestantes que viven con VIH-SIDA",null,null,null,null,"Con medicamentos"]
[null,9,"Paquete V de atención ambulatoria para gestantes que viven con VIH-SIDA",null,null,null,null,"Sin medicamentos"]
[]
[null,"Ubicación de los Pacientes"]
[]
[null,"Cantidad de Filas a Agregar o Eliminar",null,null,1]
[]
[null,"No.","Tipo de atención integral",null,null,null,"Modalidad",null,"Departamento",null,"Municipio","Rural o Urbana",null,"Cantidad"]
[null,1]
[null,null,null,null,null,null,null,null,null,null,null,"Total",null,{"$f":"SUM(M38:N38)","v":0}]
[]
[]
[null,"Gravámenes adicionales (estampillas)"]
[null,"No","Descripción",null,null,null,null,"Porcentaje"]
[null,1]
[null,null,null,null,null,"Total porcentaje:",null,{"$f":"SUM(H44:H44)","v":0}]
[null,null,null,"Filas a agregar o eliminar Gravámenes:"]
[null,null,null,1]

{"sheet":"ResumenCotizacion","index":1,"n_rows":45,"n_cols":21,"rows_kept":45,"cut":false,"hidden":false,"merged":[[36,13,36,14],[38,13,38,14],[34,1,34,14],[37,8,37,9],[37,13,37,14],[37,11,37,12],[36,11,36,12],[17,1,17,2],[17,3,17,4],[19,1,19,2],[19,3,19,4],[7,12,7,16],[9,1,9,3],[11,1,11,3],[13,1,13,3],[13,4,13,8],[11,4,11,8],[15,1,15,16],[9,4,9,8],[9,10,9,11],[9,12,9,16],[7,1,7,3],[7,10,7,11],[0,1,1,16],[3,1,3,16],[5,1,5,3],[5,4,5,8],[5,10,5,11],[5,12,5,16],[7,4,7,8],[28,13,28,14],[41,1,41,7],[44,5,44,6],[21,15,21,16],[25,15,25,16],[26,15,26,16],[28,2,28,6],[28,15,28,16],[22,2,22,6],[38,11,38,12],[27,2,27,6],[22,13,22,14],[23,15,23,16],[22,15,22,16],[42,2,42,6],[43,2,43,6],[23,2,23,6],[24,2,24,6],[25,2,25,6],[37,2,37,5],[37,6,37,7],[28,7,28,8],[36,2,36,5],[36,6,36,7],[36,8,36,9],[21,2,21,6],[24,15,24,16],[27,15,27,16],[26,2,26,6],[21,13,21,14],[24,13,24,14],[26,13,26,14],[27,13,27,14],[23,13,23,14],[25,7,25,8],[26,7,26,8],[27,7,27,8],[22,9,22,12],[23,9,23,12],[21,7,21,8],[21,9,21,12],[22,7,22,8],[23,7,23,8],[24,7,24,8],[24,9,24,12],[29,2,29,6],[29,7,29,8],[25,9,25,12],[26,9,26,12],[27,9,27,12],[28,9,28,12],[25,13,25,14],[29,13,29,14],[29,15,29,16],[30,2,30,6],[30,7,30,8],[30,13,30,14],[30,15,30,16],[29,9,29,12],[30,9,30,12]]}
[null,"Solicitud de Cotización - ERC",null,null,null,null,null,null,null,null,null,null,null,null,null,null,null,{"$f":"H45","v":0}]
[]
[]
[null,"Información de la Entidad Compradora"]
[]
[null,"Nombre de la Entidad:",null,null,{"$f":"IF(SolCotizacion!E6=\"\",\"\",SolCotizacion!E6)","v":""},null,null,null,null,null,"NIT:",null,{"$f":"IF(SolCotizacion!M6=\"\",\"\",SolCotizacion!M6)","v":""}]
[]
[null,"Dirección de la Entidad:",null,null,{"$f":"IF(SolCotizacion!E8=\"\",\"\",SolCotizacion!E8)","v":""},null,null,null,null,null,"Correo de contacto:",null,{"$f":"IF(SolCotizacion!M8=\"\",\"\",SolCotizacion!M8)","v":""}]
[]
[null,"Municipio:",null,null,{"$f":"IF(SolCotizacion!E10=\"\",\"\",SolCotizacion!E10)","v":""},null,null,null,null,null,"Teléfono de contacto:",null,{"$f":"IF(SolCotizacion!M10=\"\",\"\",SolCotizacion!M10)","v":""}]
[]
[null,"Nombre funcionario Comprador:",null,null,{"$f":"IF(SolCotizacion!E12=\"\",\"\",SolCotizacion!E12)","v":""}]
[]
[]
[]
[null,"Resumen de Cotización"]
[]
[null,"Región",null,{"$f":"IF(SolCotizacion!D18=\"\",\"\",SolCotizacion!D18)","v":""}]
[]
[null,"Meses de Tratamiento",null,{"$f":"IF(SolCotizacion!D20=\"\",\"\",SolCotizacion!D20)","v":""}]
[]
[null,"Ref. Servicio","Servicio",null,null,null,null,"Modalidad",null,"Número total de Pacientes por mes",null,null,null,"Meses",null,"Precio unitario",null,"Precio Unitario con Gravámenes","Precio con gravámenes * meses","Precio * meses * cantidad","Precio Total"]
[null,1,"Paquete I de promoción, prevención y descarte de diagnóstico de VIH-SIDA",null,null,null,null,"NA",null,null,null,null,null,null,null,null,null,{"$f":"ROUND(P23/(1-R1),2)","v":0},{"$f":"ROUND(R23*N23,2)","v":0},{"$f":"ROUND(S23*J23,2)","v":0},{"$f":"T23","v":0}]
[null,2,"Paquete II de atención a menores de 18 meses hijos de madres que viven con VIH-SIDA o que tengan criterios clínicos sin conocimiento del estado virológico de la madre",null,null,null,null,"Con medicamentos",null,null,null,null,null,null,null,null,null,{"$f":"ROUND(P24/(1-R1),2)","v":0},{"$f":"ROUND(R24*N24,2)","v":0},{"$f":"ROUND(S24*J24,2)","v":0},{"$f":"T24","v":0}]
[null,3,"Paquete II de atención a menores de 18 meses hijos de madres que viven con VIH-SIDA o que tengan criterios clínicos sin conocimiento del estado virológico de la madre",null,null,null,null,"Sin medicamentos"]
[null,4,"Paquete III de atención integral a Pacientes menores de 13 años que viven con VIH-SIDA",null,null,null,null,"Con medicamentos"]
[null,5,"Paquete III de atención integral a Pacientes menores de 13 años que viven con VIH-SIDA",null,null,null,null,"Sin medicamentos"]
[null,6,"Paquete IV de atención ambulatoria para personas que viven con VIH-SIDA mayores de 13 años",null,null,null,null,"Con medicamentos"]
[null,7,"Paquete IV de atención ambulatoria para personas que viven con VIH-SIDA mayores de 13 años",null,null,null,null,"Sin medicamentos"]
[null,8,"Paquete V de atención ambulatoria para gestantes que viven con VIH-SIDA",null,null,null,null,"Con medicamentos"]
[null,9,"Paquete V de atención ambulatoria para gestantes que viven con VIH-SIDA",null,null,null,null,"Sin medicamentos",null,null,null,null,null,null,null,null,null,{"$f":"ROUND(P31/(1-R1),2)","v":0},{"$f":"ROUND(R31*N31,2)","v":0},{"$f":"ROUND(S31*J31,2)","v":0},{"$f":"T31","v":0}]
[null,null,null,null,null,null,null,null,null,null,null,null,null,null,null,null,null,null,null,"Valor Total",{"$f":"SUM(U23:U31)","v":0}]
[]
[]
[null,"Ubicación de los Pacientes"]
[]
[null,"No.","Tipo de atención integral",null,null,null,"Modalidad",null,"Departamento",null,"Municipio","Rural o Urbana",null,"Cantidad"]
[null,1]
[null,null,null,null,null,null,null,null,null,null,null,"Total",null,{"$f":"SUM(N38:O38)","v":0}]
[]
[]
[null,"Gravámenes adicionales (estampillas)"]
[null,"No","Descripción",null,null,null,null,"Porcentaje"]
[null,1]
[null,null,null,null,null,"Total porcentaje:",null,{"$f":"SUM(H44:H44)","v":0}]

{"sheet":"Consolidado","index":2,"n_rows":28,"n_cols":12,"rows_kept":28,"cut":false,"hidden":true,"merged":[]}
["Ref.  Artículo. ","Descripción","Región","SOCIEDAD INTEGRAL DE ESPECIALISTAS EN SALUD  -SIES SALUD SAS-","IPS DE LA COSTA S.A","UNIÓN HAART U.T.",null,null,"Menor valor","SOCIEDAD INTEGRAL DE ESPECIALISTAS EN SALUD  -SIES SALUD SAS-","IPS DE LA COSTA S.A","UNIÓN HAART U.T."]
[1,"Paquete I de promoción, prevención y descarte de diagnóstico de VIH-SIDA","1 Centro y sur",54962,null,58245,null,null,{"$f":"MIN(IF(J2:L2>0, J2:L2))","v":1164900},{"$f":"SUM(IF(G:G=1,D:D*H:H))","v":1266459},{"$f":"SUM(IF(G:G=1,E:E*H:H))","v":0},{"$f":"SUM(IF(G:G=1,F:F*H:H))","v":1164900}]
[2,"Paquete II de atención a menores de 18 meses hijos de madres que viven con VIH-SIDA o que tengan criterios clínicos sin conocimiento del estado virológico de la madre","1 Centro y sur",142436,null,142965]
[3,"Paquete II de atención a menores de 18 meses hijos de madres que viven con VIH-SIDA o que tengan criterios clínicos sin conocimiento del estado virológico de la madre","1 Centro y sur",153555,null,142965]
[4,"Paquete III de atención integral a Pacientes menores de 13 años que viven con VIH-SIDA","1 Centro y sur",259455,null,259455]
[5,"Paquete III de atención integral a Pacientes menores de 13 años que viven con VIH-SIDA","1 Centro y sur",242511,null,228744]
[6,"Paquete IV de atención ambulatoria para personas que viven con VIH-SIDA mayores de 13 años","1 Centro y sur",582450,null,593040]
[7,"Paquete IV de atención ambulatoria para personas que viven con VIH-SIDA mayores de 13 años","1 Centro y sur",244100,null,247806]
[8,"Paquete V de atención ambulatoria para gestantes que viven con VIH-SIDA","1 Centro y sur",326172,null,330938]
[9,"Paquete V de atención ambulatoria para gestantes que viven con VIH-SIDA","1 Centro y sur",185325,null,164145]
[1,"Paquete I de promoción, prevención y descarte de diagnóstico de VIH-SIDA","2 Andina y occidente",54962,null,58245,1,1]
[2,"Paquete II de atención a menores de 18 meses hijos de madres que viven con VIH-SIDA o que tengan criterios clínicos sin conocimiento del estado virológico de la madre","2 Andina y occidente",142436,null,142965,1,2]
[3,"Paquete II de atención a menores de 18 meses hijos de madres que viven con VIH-SIDA o que tengan criterios clínicos sin conocimiento del estado virológico de la madre","2 Andina y occidente",153555,null,142965]
[4,"Paquete III de atención integral a Pacientes menores de 13 años que viven con VIH-SIDA","2 Andina y occidente",259455,null,259455]
[5,"Paquete III de atención integral a Pacientes menores de 13 años que viven con VIH-SIDA","2 Andina y occidente",242511,null,228744]
[6,"Paquete IV de atención ambulatoria para personas que viven con VIH-SIDA mayores de 13 años","2 Andina y occidente",582450,null,593040]
[7,"Paquete IV de atención ambulatoria para personas que viven con VIH-SIDA mayores de 13 años","2 Andina y occidente",244100,null,247806]
[8,"Paquete V de atención ambulatoria para gestantes que viven con VIH-SIDA","2 Andina y occidente",326172,null,330938]
[9,"Paquete V de atención ambulatoria para gestantes que viven con VIH-SIDA","2 Andina y occidente",185325,null,164145,1,5]
[1,"Paquete I de promoción, prevención y descarte de diagnóstico de VIH-SIDA","3 Costa y norte",null,52950,58245]
[2,"Paquete II de atención a menores de 18 meses hijos de madres que viven con VIH-SIDA o que tengan criterios clínicos sin conocimiento del estado virológico de la madre","3 Costa y norte",null,105900,142965]
[3,"Paquete II de atención a menores de 18 meses hijos de madres que viven con VIH-SIDA o que tengan criterios clínicos sin conocimiento del estado virológico de la madre","3 Costa y norte",null,52950,142965]
[4,"Paquete III de atención integral a Pacientes menores de 13 años que viven con VIH-SIDA","3 Costa y norte",null,635400,259455]
[5,"Paquete III de atención integral a Pacientes menores de 13 años que viven con VIH-SIDA","3 Costa y norte",null,370650,228744]
[6,"Paquete IV de atención ambulatoria para personas que viven con VIH-SIDA mayores de 13 años","3 Costa y norte",null,635400,593040]
[7,"Paquete IV de atención ambulatoria para personas que viven con VIH-SIDA mayores de 13 años","3 Costa y norte",null,370650,247806]
[8,"Paquete V de atención ambulatoria para gestantes que viven con VIH-SIDA","3 Costa y norte",null,105900,330938]
[9,"Paquete V de atención ambulatoria para gestantes que viven con VIH-SIDA","3 Costa y norte",null,52950,164145]

{"sheet":"LISTAS","index":3,"n_rows":126,"n_cols":41,"rows_kept":126,"cut":false,"hidden":true,"merged":[]}
["region","Paquetes","proveedores","1Centroysur","2Andinayoccidente","3Costaynorte","Modalidad",null,"AMAZONAS","ANTIOQUIA","ARAUCA","ARCHIPIÉLAGODESANANDRÉSPROVIDENCIAY","ATLÁNTICO","BOGOTÁDC","BOLÍVAR","BOYACÁ","CALDAS","CAQUETÁ","CASANARE","CAUCA","CESAR","CHOCÓ","CÓRDOBA","CUNDINAMARCA","GUAINÍA","GUAVIARE","HUILA","LAGUAJIRA","MAGDALENA","META","NARIÑO","NORTE DE SANTANDER","QUINDÍO","RISARALDA","SANTANDER","SUCRE","TOLIMA","VALLE","VAUPÉS","VICHADA","PUTUMAYO"]
["1 Centro y sur","Paquete I de promoción, prevención y descarte de diagnóstico de VIH-SIDA","SOCIEDAD INTEGRAL DE ESPECIALISTAS EN SALUD  -SIES SALUD SAS-","BOGOTÁ, D. C.","ANTIOQUIA","ATLÁNTICO",null,null,"EL ENCANTO","ABEJORRAL","ARAUCA","PROVIDENCIA","BARANOA","BOGOTÁ, D.C.","ACHÍ","ALMEIDA","AGUADAS","ALBANIA","AGUAZUL","ALMAGUER","AGUACHICA","ACANDÍ","AYAPEL","AGUA DE DIOS","BARRANCO MINAS","CALAMAR","ACEVEDO","ALBANIA","ALGARROBO","ACACÍAS","ALBÁN","ÁBREGO","ARMENIA","APÍA","AGUADA","BUENAVISTA","ALPUJARRA","ALCALÁ","CARURÚ","CUMARIBO","COLÓN"]
["2 Andina y occidente","Paquete II de atención a menores de 18 meses hijos de madres que viven con VIH-SIDA o que tengan criterios clínicos sin conocimiento del estado virológico de la madre","IPS DE LA COSTA S.A","META","VALLE","SANTANDER",null,null,"LA CHORRERA","ABRIAQUÍ","ARAUQUITA","SAN ANDRÉS","BARRANQUILLA",null,"ALTOS DEL ROSARIO","AQUITANIA","ANSERMA","BELÉN DE LOS ANDAQUÍES","CHÁMEZA","ARGELIA","AGUSTÍN CODAZZI","ALTO BAUDÓ","BUENAVISTA","ALBÁN","CACAHUAL","EL RETORNO","AGRADO","BARRANCAS","ARACATACA","BARRANCA DE UPÍA","ALDANA","ARBOLEDAS","BUENAVISTA","BALBOA","ALBANIA","CAIMITO","ALVARADO","ANDALUCÍA","MITÚ","LA PRIMAVERA","MOCOA"]
["3 Costa y norte","Paquete II de atención a menores de 18 meses hijos de madres que viven con VIH-SIDA o que tengan criterios clínicos sin conocimiento del estado virológico de la madre","UNIÓN HAART U.T.","CAQUETÁ","TOLIMA","NORTE DE SANTANDER",null,null,"LA PEDRERA","ALEJANDRÍA","CRAVO NORTE",null,"CAMPO DE LA CRUZ",null,"ARENAL","ARCABUCO","ARANZAZU","CARTAGENA DEL CHAIRÁ","HATO COROZAL","BALBOA","ASTREA","ATRATO","CANALETE","ANAPOIMA","INÍRIDA","MIRAFLORES","AIPE","DIBULLA","ARIGUANÍ","CABUYARO","ANCUYÁ","BOCHALEMA","CALARCÁ","BELÉN DE UMBRÍA","ARATOCA","CHALÁN","AMBALEMA","ANSERMANUEVO","PACOA","PUERTO CARREÑO","ORITO"]
[null,"Paquete III de atención integral a Pacientes menores de 13 años que viven con VIH-SIDA",null,"CUNDINAMARCA","RISARALDA","BOLÍVAR",null,null,"LA VICTORIA","AMAGÁ","FORTUL",null,"CANDELARIA",null,"ARJONA","BELÉN","BELALCÁZAR","CURILLO","LA SALINA","BOLÍVAR","BECERRIL","BAGADÓ","CERETÉ","ANOLAIMA","LA GUADALUPE","SAN JOSÉ DEL GUAVIARE","ALGECIRAS","DISTRACCIÓN","CERRO DE SAN ANTONIO","CASTILLA LA NUEVA","ARBOLEDA","BUCARASICA","CIRCASIA","DOSQUEBRADAS","BARBOSA","COLOSÓ","ANZOÁTEGUI","ARGELIA","PAPUNAUA","SANTA ROSALÍA","PUERTO ASÍS"]
[null,"Paquete III de atención integral a Pacientes menores de 13 años que viven con VIH-SIDA",null,"CASANARE","QUINDÍO","CÓRDOBA",null,null,"LETICIA","AMALFI","PUERTO RONDÓN",null,"GALAPA",null,"ARROYOHONDO","BERBEO","CHINCHINÁ","EL DONCELLO","MANÍ","BUENOS AIRES","BOSCONIA","BAHÍA SOLANO","CHIMÁ","APULO","MAPIRIPANA",null,"ALTAMIRA","EL MOLINO","CHIVOLO","CUBARRAL","BARBACOAS","CÁCHIRA","CÓRDOBA","GUÁTICA","BARICHARA","COROZAL","ARMERO GUAYABAL","BOLÍVAR","TARAIRA",null,"PUERTO CAICEDO"]
[null,"Paquete IV de atención ambulatoria para personas que viven con VIH-SIDA mayores de 13 años",null,"ARAUCA","CALDAS","CESAR",null,null,"MIRITÍ - PARANÁ","ANDES","SARAVENA",null,"JUAN DE ACOSTA",null,"BARRANCO DE LOBA","BETÉITIVA","FILADELFIA","EL PAUJÍL","MONTERREY","CAJIBÍO","CHIMICHAGUA","BAJO BAUDÓ","CHINÚ","ARBELÁEZ","MORICHAL",null,"BARAYA","FONSECA","CIÉNAGA","CUMARAL","BELÉN","CÁCOTA","FILANDIA","LA CELIA","BARRANCABERMEJA","COVEÑAS","ATACO","BUENAVENTURA","YAVARATÉ",null,"PUERTO GUZMÁN"]
[null,"Paquete IV de atención ambulatoria para personas que viven con VIH-SIDA mayores de 13 años",null,"PUTUMAYO","HUILA","SUCRE",null,null,"PUERTO ALEGRÍA","ANGELÓPOLIS","TAME",null,"LURUACO",null,"CALAMAR","BOAVITA","LA DORADA","FLORENCIA","NUNCHÍA","CALDONO","CHIRIGUANÁ","BOJAYÁ","CIÉNAGA DE ORO","BELTRÁN","PANA PANA",null,"CAMPOALEGRE","HATONUEVO","CONCORDIA","EL CALVARIO","BUESACO","CHINÁCOTA","GÉNOVA","LA VIRGINIA","BETULIA","EL ROBLE","CAJAMARCA","BUGALAGRANDE",null,null,"PUERTO LEGUÍZAMO"]
[null,"Paquete V de atención ambulatoria para gestantes que viven con VIH-SIDA",null,"VICHADA","CAUCA","MAGDALENA",null,null,"PUERTO ARICA","ANGOSTURA",null,null,"MALAMBO",null,"CANTAGALLO","BOYACÁ","LA MERCED","LA MONTAÑITA","OROCUÉ","CALOTO","CURUMANÍ","CARMEN DEL DARIÉN","COTORRA","BITUIMA","PUERTO COLOMBIA",null,"COLOMBIA","LA JAGUA DEL PILAR","EL BANCO","EL CASTILLO","CHACHAGÜÍ","CHITAGÁ","LA TEBAIDA","MARSELLA","BOLÍVAR","GALERAS","CARMEN DE APICALÁ","CAICEDONIA",null,null,"SAN FRANCISCO"]
[null,"Paquete V de atención ambulatoria para gestantes que viven con VIH-SIDA",null,"AMAZONAS","NARIÑO","BOYACÁ",null,null,"PUERTO NARIÑO","ANORÍ",null,null,"MANATÍ",null,"CARTAGENA DE INDIAS","BRICEÑO","MANIZALES","MILÁN","PAZ DE ARIPORO","CORINTO","EL COPEY","CÉRTEGUI","LA APARTADA","BOJACÁ","SAN FELIPE",null,"ELÍAS","MAICAO","EL PIÑÓN","EL DORADO","COLÓN","CONVENCIÓN","MONTENEGRO","MISTRATÓ","BUCARAMANGA","GUARANDA","CASABIANCA","CALI",null,null,"SAN MIGUEL"]
[null,null,null,"GUAINÍA","CHOCÓ","LAGUAJIRA",null,null,"PUERTO SANTANDER","ANZÁ",null,null,"PALMAR DE VARELA",null,"CICUCO","BUENAVISTA","MANZANARES","MORELIA","PORE","EL TAMBO","EL PASO","CONDOTO","LORICA","CABRERA",null,null,"GARZÓN","MANAURE","EL RETÉN","FUENTE DE ORO","CONSACÁ","CÚCUTA","PIJAO","PEREIRA","CABRERA","LA UNIÓN","CHAPARRAL","CALIMA",null,null,"SANTIAGO"]
[null,null,null,"GUAVIARE",null,"ARCHIPIÉLAGO DE SAN ANDRÉS, PROVIDENCIA Y",null,null,"TARAPACÁ","APARTADÓ",null,null,"PIOJÓ",null,"CLEMENCIA","BUSBANZÁ","MARMATO","PUERTO RICO","RECETOR","FLORENCIA","GAMARRA","EL CANTÓN DEL SAN PABLO","LOS CÓRDOBAS","CACHIPAY",null,null,"GIGANTE","RIOHACHA","FUNDACIÓN","GRANADA","CONTADERO","CUCUTILLA","QUIMBAYA","PUEBLO RICO","CALIFORNIA","LOS PALMITOS","COELLO","CANDELARIA",null,null,"SIBUNDOY"]
[null,null,null,"VAUPÉS",null,null,null,null,null,"ARBOLETES",null,null,"POLONUEVO",null,"CÓRDOBA","CALDAS","MARQUETALIA","SAN JOSÉ DEL FRAGUA","SABANALARGA","GUACHENÉ","GONZÁLEZ","EL CARMEN DE ATRATO","MOMIL","CAJICÁ",null,null,"GUADALUPE","SAN JUAN DEL CESAR","GUAMAL","GUAMAL","CÓRDOBA","DURANIA","SALENTO","QUINCHÍA","CAPITANEJO","MAJAGUAL","COYAIMA","CARTAGO",null,null,"VALLE DEL GUAMUEZ"]
[null,null,null,null,null,null,null,null,null,"ARGELIA",null,null,"PONEDERA",null,"EL CARMEN DE BOLÍVAR","CAMPOHERMOSO","MARULANDA","SAN VICENTE DEL CAGUÁN","SÁCAMA","GUAPÍ","LA GLORIA","EL LITORAL DEL SAN JUAN","MOÑITOS","CAPARRAPÍ",null,null,"HOBO","URIBIA","NUEVA GRANADA","LA MACARENA","CUASPÚD","EL CARMEN",null,"SANTA ROSA DE CABAL","CARCASÍ","MORROA","CUNDAY","DAGUA",null,null,"VILLAGARZÓN"]
[null,null,null,null,null,null,null,null,null,"ARMENIA",null,null,"PUERTO COLOMBIA",null,"EL GUAMO","CERINZA","NEIRA","SOLANO","SAN LUIS DE PALENQUE","INZÁ","LA JAGUA DE IBIRICO","ISTMINA","MONTELÍBANO","CÁQUEZA",null,null,"ÍQUIRA","URUMITA","PEDRAZA","LEJANÍAS","CUMBAL","EL TARRA",null,"SANTUARIO","CEPITÁ","OVEJAS","DOLORES","EL ÁGUILA"]
[null,null,null,null,null,null,null,null,null,"BARBOSA",null,null,"REPELÓN",null,"EL PEÑÓN","CHINAVITA","NORCASIA","SOLITA","TÁMARA","JAMBALÓ","LA PAZ","JURADÓ","MONTERÍA","CARMEN DE CARUPA",null,null,"ISNOS","VILLANUEVA","PIJIÑO DEL CARMEN","MAPIRIPÁN","CUMBITARA","EL ZULIA",null,null,"CERRITO","PALMITO","ESPINAL","EL CAIRO"]
[null,null,null,null,null,null,null,null,null,"BELLO",null,null,"SABANAGRANDE",null,"HATILLO DE LOBA","CHIQUINQUIRÁ","PÁCORA","VALPARAÍSO","TAURAMENA","LA SIERRA","MANAURE BALCÓN DEL CESAR","LLORÓ","PLANETA RICA","CHAGUANÍ",null,null,"LA ARGENTINA",null,"PIVIJAY","MESETAS","EL CHARCO","GRAMALOTE",null,null,"CHARALÁ","SAMPUÉS","FALAN","EL CERRITO"]
[null,null,null,null,null,null,null,null,null,"BELMIRA",null,null,"SABANALARGA",null,"MAGANGUÉ","CHÍQUIZA","PALESTINA",null,"TRINIDAD","LA VEGA","PAILITAS","MEDIO ATRATO","PUEBLO NUEVO","CHÍA",null,null,"LA PLATA",null,"PLATO","PUERTO CONCORDIA","EL PEÑOL","HACARÍ",null,null,"CHARTA","SAN BENITO ABAD","FLANDES","EL DOVIO"]
[null,null,null,null,null,null,null,null,null,"BETANIA",null,null,"SANTA LUCÍA",null,"MAHATES","CHISCAS","PENSILVANIA",null,"VILLANUEVA","LÓPEZ DE MICAY","PELAYA","MEDIO BAUDÓ","PUERTO ESCONDIDO","CHIPAQUE",null,null,"NÁTAGA",null,"PUEBLOVIEJO","PUERTO GAITÁN","EL ROSARIO","HERRÁN",null,null,"CHIMA","SAN JUAN DE BETULIA","FRESNO","FLORIDA"]
[null,null,null,null,null,null,null,null,null,"BETULIA",null,null,"SANTO TOMÁS",null,"MARGARITA","CHITA","RIOSUCIO",null,"YOPAL","MERCADERES","PUEBLO BELLO","MEDIO SAN JUAN","PUERTO LIBERTADOR","CHOACHÍ",null,null,"NEIVA",null,"REMOLINO","PUERTO LLERAS","EL TABLÓN DE GÓMEZ","LA ESPERANZA",null,null,"CHIPATÁ","SAN LUIS DE SINCÉ","GUAMO","GINEBRA"]
[null,null,null,null,null,null,null,null,null,"BRICEÑO",null,null,"SOLEDAD",null,"MARÍA LA BAJA","CHITARAQUE","RISARALDA",null,null,"MIRANDA","RÍO DE ORO","NÓVITA","PURÍSIMA DE LA CONCEPCIÓN","CHOCONTÁ",null,null,"OPORAPA",null,"SABANAS DE SAN ÁNGEL","PUERTO LÓPEZ","EL TAMBO","LA PLAYA",null,null,"CIMITARRA","SAN MARCOS","HERVEO","GUACARÍ"]
[null,null,null,null,null,null,null,null,null,"BURITICÁ",null,null,"SUAN",null,"MOMPÓS","CHIVATÁ","SALAMINA",null,null,"MORALES","SAN ALBERTO","NUQUÍ","SAHAGÚN","COGUA",null,null,"PAICOL",null,"SALAMINA","PUERTO RICO","FRANCISCO PIZARRO","LABATECA",null,null,"CONCEPCIÓN","SAN ONOFRE","HONDA","GUADALAJARA DE BUGA"]
[null,null,null,null,null,null,null,null,null,"CÁCERES",null,null,"TUBARÁ",null,"MONTECRISTO","CHIVOR","SAMANÁ",null,null,"PADILLA","SAN DIEGO","QUIBDÓ","SAN ANDRÉS DE SOTAVENTO","COTA",null,null,"PALERMO",null,"SAN SEBASTIÁN DE BUENAVISTA","RESTREPO","FUNES","LOS PATIOS",null,null,"CONFINES","SAN PEDRO","IBAGUÉ","JAMUNDÍ"]
[null,null,null,null,null,null,null,null,null,"CAICEDO",null,null,"USIACURÍ",null,"MORALES","CIÉNEGA","SAN JOSÉ",null,null,"PÁEZ","SAN MARTÍN","RÍO IRÓ","SAN ANTERO","CUCUNUBÁ",null,null,"PALESTINA",null,"SAN ZENÓN","SAN CARLOS DE GUAROA","GUACHUCAL","LOURDES",null,null,"CONTRATACIÓN","SANTIAGO DE TOLÚ","ICONONZO","LA CUMBRE"]
[null,null,null,null,null,null,null,null,null,"CALDAS",null,null,null,null,"NOROSÍ","CÓMBITA","SUPÍA",null,null,"PATÍA","TAMALAMEQUE","RÍO QUITO","SAN BERNARDO DEL VIENTO","EL COLEGIO",null,null,"PITAL",null,"SANTA ANA","SAN JUAN DE ARAMA","GUAITARILLA","MUTISCUA",null,null,"COROMORO","SINCELEJO","LÉRIDA","LA UNIÓN"]
[null,null,null,null,null,null,null,null,null,"CAMPAMENTO",null,null,null,null,"PINILLOS","COPER","VICTORIA",null,null,"PIAMONTE","VALLEDUPAR","RIOSUCIO","SAN CARLOS","EL PEÑÓN",null,null,"PITALITO",null,"SANTA BÁRBARA DE PINTO","SAN JUANITO","GUALMATÁN","OCAÑA",null,null,"CURITÍ","SUCRE","LÍBANO","LA VICTORIA"]
[null,null,null,null,null,null,null,null,null,"CAÑASGORDAS",null,null,null,null,"REGIDOR","CORRALES","VILLAMARÍA",null,null,"PIENDAMÓ",null,"SAN JOSÉ DEL PALMAR","SAN JOSÉ DE URÉ","EL ROSAL",null,null,"RIVERA",null,"SANTA MARTA","SAN MARTÍN","ILES","PAMPLONA",null,null,"EL CARMEN DE CHUCURÍ","TOLÚ VIEJO","MELGAR","OBANDO"]
[null,null,null,null,null,null,null,null,null,"CARACOLÍ",null,null,null,null,"RÍO VIEJO","COVARACHÍA","VITERBO",null,null,"POPAYÁN",null,"SIPÍ","SAN PELAYO","FACATATIVÁ",null,null,"SALADOBLANCO",null,"SITIONUEVO","URIBE","IMUÉS","PAMPLONITA",null,null,"EL GUACAMAYO",null,"MURILLO","PALMIRA"]
[null,null,null,null,null,null,null,null,null,"CARAMANTA",null,null,null,null,"SAN CRISTÓBAL","CUBARÁ",null,null,null,"PUERTO TEJADA",null,"TADÓ","TIERRALTA","FÓMEQUE",null,null,"SAN AGUSTÍN",null,"TENERIFE","VILLAVICENCIO","IPIALES","PUERTO SANTANDER",null,null,"EL PEÑÓN",null,"NATAGAIMA","PRADERA"]
[null,null,null,null,null,null,null,null,null,"CAREPA",null,null,null,null,"SAN ESTANISLAO","CUCAITA",null,null,null,"PURACÉ",null,"UNGUÍA","TUCHÍN","FOSCA",null,null,"SANTA MARÍA",null,"ZAPAYÁN","VISTAHERMOSA","LA CRUZ","RAGONVALIA",null,null,"EL PLAYÓN",null,"ORTEGA","RESTREPO"]
[null,null,null,null,null,null,null,null,null,"CAROLINA",null,null,null,null,"SAN FERNANDO","CUÍTIVA",null,null,null,"ROSAS",null,"UNIÓN PANAMERICANA","VALENCIA","FUNZA",null,null,"SUAZA",null,"ZONA BANANERA",null,"LA FLORIDA","SALAZAR",null,null,"ENCINO",null,"PALOCABILDO","RIOFRÍO"]
[null,null,null,null,null,null,null,null,null,"CAUCASIA",null,null,null,null,"SAN JACINTO","DUITAMA",null,null,null,"SAN SEBASTIÁN",null,null,null,"FÚQUENE",null,null,"TARQUI",null,null,null,"LA LLANADA","SAN CALIXTO",null,null,"ENCISO",null,"PIEDRAS","ROLDANILLO"]
[null,null,null,null,null,null,null,null,null,"CHIGORODÓ",null,null,null,null,"SAN JACINTO DEL CAUCA","EL COCUY",null,null,null,"SANTA ROSA",null,null,null,"FUSAGASUGÁ",null,null,"TELLO",null,null,null,"LA TOLA","SAN CAYETANO",null,null,"FLORIÁN",null,"PLANADAS","SAN PEDRO"]
[null,null,null,null,null,null,null,null,null,"CISNEROS",null,null,null,null,"SAN JUAN NEPOMUCENO","EL ESPINO",null,null,null,"SANTANDER DE QUILICHAO",null,null,null,"GACHALÁ",null,null,"TERUEL",null,null,null,"LA UNIÓN","SANTIAGO",null,null,"FLORIDABLANCA",null,"PRADO","SEVILLA"]
[null,null,null,null,null,null,null,null,null,"CIUDAD BOLÍVAR",null,null,null,null,"SAN MARTÍN DE LOBA","FIRAVITOBA",null,null,null,"SILVIA",null,null,null,"GACHANCIPÁ",null,null,"TESALIA",null,null,null,"LEIVA","SARDINATA",null,null,"GALÁN",null,"PURIFICACIÓN","TORO"]
[null,null,null,null,null,null,null,null,null,"COCORNÁ",null,null,null,null,"SAN PABLO","FLORESTA",null,null,null,"SOTARA",null,null,null,"GACHETÁ",null,null,"TIMANÁ",null,null,null,"LINARES","SILOS",null,null,"GÁMBITA",null,"RIOBLANCO","TRUJILLO"]
[null,null,null,null,null,null,null,null,null,"CONCEPCIÓN",null,null,null,null,"SANTA CATALINA","GACHANTIVÁ",null,null,null,"SUÁREZ",null,null,null,"GAMA",null,null,"VILLAVIEJA",null,null,null,"LOS ANDES","TEORAMA",null,null,"GIRÓN",null,"RONCESVALLES","TULUÁ"]
[null,null,null,null,null,null,null,null,null,"CONCORDIA",null,null,null,null,"SANTA ROSA","GÁMEZA",null,null,null,"SUCRE",null,null,null,"GIRARDOT",null,null,"YAGUARÁ",null,null,null,"MAGÜÍ","TIBÚ",null,null,"GUACA",null,"ROVIRA","ULLOA"]
[null,null,null,null,null,null,null,null,null,"COPACABANA",null,null,null,null,"SANTA ROSA DEL SUR","GARAGOA",null,null,null,"TIMBÍO",null,null,null,"GRANADA",null,null,null,null,null,null,"MALLAMA","TOLEDO",null,null,"GUADALUPE",null,"SALDAÑA","VERSALLES"]
[null,null,null,null,null,null,null,null,null,"DABEIBA",null,null,null,null,"SIMITÍ","GUACAMAYAS",null,null,null,"TIMBIQUÍ",null,null,null,"GUACHETÁ",null,null,null,null,null,null,"MOSQUERA","VILLA CARO",null,null,"GUAPOTÁ",null,"SAN ANTONIO","VIJES"]
[null,null,null,null,null,null,null,null,null,"DONMATÍAS",null,null,null,null,"SOPLAVIENTO","GUATEQUE",null,null,null,"TORIBÍO",null,null,null,"GUADUAS",null,null,null,null,null,null,"NARIÑO","VILLA DEL ROSARIO",null,null,"GUAVATÁ",null,"SAN LUIS","YOTOCO"]
[null,null,null,null,null,null,null,null,null,"EBÉJICO",null,null,null,null,"TALAIGUA NUEVO","GUAYATÁ",null,null,null,"TOTORÓ",null,null,null,"GUASCA",null,null,null,null,null,null,"OLAYA HERRERA",null,null,null,"GÜEPSA",null,"SAN SEBASTIÁN DE MARIQUITA","YUMBO"]
[null,null,null,null,null,null,null,null,null,"EL BAGRE",null,null,null,null,"TIQUISIO","GÜICÁN DE LA SIERRA",null,null,null,"VILLA RICA",null,null,null,"GUATAQUÍ",null,null,null,null,null,null,"OSPINA",null,null,null,"HATO",null,"SANTA ISABEL","ZARZAL"]
[null,null,null,null,null,null,null,null,null,"EL CARMEN DE VIBORAL",null,null,null,null,"TURBACO","IZA",null,null,null,null,null,null,null,"GUATAVITA",null,null,null,null,null,null,"PASTO",null,null,null,"JESÚS MARÍA",null,"SUÁREZ"]
[null,null,null,null,null,null,null,null,null,"EL SANTUARIO",null,null,null,null,"TURBANÁ","JENESANO",null,null,null,null,null,null,null,"GUAYABAL DE SÍQUIMA",null,null,null,null,null,null,"POLICARPA",null,null,null,"JORDÁN",null,"VALLE DE SAN JUAN"]
[null,null,null,null,null,null,null,null,null,"ENTRERRÍOS",null,null,null,null,"VILLANUEVA","JERICÓ",null,null,null,null,null,null,null,"GUAYABETAL",null,null,null,null,null,null,"POTOSÍ",null,null,null,"LA BELLEZA",null,"VENADILLO"]
[null,null,null,null,null,null,null,null,null,"ENVIGADO",null,null,null,null,"ZAMBRANO","LA CAPILLA",null,null,null,null,null,null,null,"GUTIÉRREZ",null,null,null,null,null,null,"PROVIDENCIA",null,null,null,"LA PAZ",null,"VILLAHERMOSA"]
[null,null,null,null,null,null,null,null,null,"FREDONIA",null,null,null,null,null,"LA UVITA",null,null,null,null,null,null,null,"JERUSALÉN",null,null,null,null,null,null,"PUERRES",null,null,null,"LANDÁZURI",null,"VILLARRICA"]
[null,null,null,null,null,null,null,null,null,"FRONTINO",null,null,null,null,null,"LA VICTORIA",null,null,null,null,null,null,null,"JUNÍN",null,null,null,null,null,null,"PUPIALES",null,null,null,"LEBRIJA"]
[null,null,null,null,null,null,null,null,null,"GIRALDO",null,null,null,null,null,"LABRANZAGRANDE",null,null,null,null,null,null,null,"LA CALERA",null,null,null,null,null,null,"RICAURTE",null,null,null,"LOS SANTOS"]
[null,null,null,null,null,null,null,null,null,"GIRARDOTA",null,null,null,null,null,"MACANAL",null,null,null,null,null,null,null,"LA MESA",null,null,null,null,null,null,"ROBERTO PAYÁN",null,null,null,"MACARAVITA"]
[null,null,null,null,null,null,null,null,null,"GÓMEZ PLATA",null,null,null,null,null,"MARIPÍ",null,null,null,null,null,null,null,"LA PALMA",null,null,null,null,null,null,"SAMANIEGO",null,null,null,"MÁLAGA"]
[null,null,null,null,null,null,null,null,null,"GRANADA",null,null,null,null,null,"MIRAFLORES",null,null,null,null,null,null,null,"LA PEÑA",null,null,null,null,null,null,"SAN ANDRÉS DE TUMACO",null,null,null,"MATANZA"]
[null,null,null,null,null,null,null,null,null,"GUADALUPE",null,null,null,null,null,"MONGUA",null,null,null,null,null,null,null,"LA VEGA",null,null,null,null,null,null,"SAN BERNARDO",null,null,null,"MOGOTES"]
[null,null,null,null,null,null,null,null,null,"GUARNE",null,null,null,null,null,"MONGUÍ",null,null,null,null,null,null,null,"LENGUAZAQUE",null,null,null,null,null,null,"SAN LORENZO",null,null,null,"MOLAGAVITA"]
[null,null,null,null,null,null,null,null,null,"GUATAPÉ",null,null,null,null,null,"MONIQUIRÁ",null,null,null,null,null,null,null,"MACHETÁ",null,null,null,null,null,null,"SAN PABLO",null,null,null,"OCAMONTE"]
[null,null,null,null,null,null,null,null,null,"HELICONIA",null,null,null,null,null,"MOTAVITA",null,null,null,null,null,null,null,"MADRID",null,null,null,null,null,null,"SAN PEDRO DE CARTAGO",null,null,null,"OIBA"]
[null,null,null,null,null,null,null,null,null,"HISPANIA",null,null,null,null,null,"MUZO",null,null,null,null,null,null,null,"MANTA",null,null,null,null,null,null,"SANDONÁ",null,null,null,"ONZAGA"]
[null,null,null,null,null,null,null,null,null,"ITAGÜÍ",null,null,null,null,null,"NOBSA",null,null,null,null,null,null,null,"MEDINA",null,null,null,null,null,null,"SANTA BÁRBARA",null,null,null,"PALMAR"]
[null,null,null,null,null,null,null,null,null,"ITUANGO",null,null,null,null,null,"NUEVO COLÓN",null,null,null,null,null,null,null,"MOSQUERA",null,null,null,null,null,null,"SANTACRUZ",null,null,null,"PALMAS DEL SOCORRO"]
[null,null,null,null,null,null,null,null,null,"JARDÍN",null,null,null,null,null,"OICATÁ",null,null,null,null,null,null,null,"NARIÑO",null,null,null,null,null,null,"SAPUYES",null,null,null,"PÁRAMO"]
[null,null,null,null,null,null,null,null,null,"JERICÓ",null,null,null,null,null,"OTANCHE",null,null,null,null,null,null,null,"NEMOCÓN",null,null,null,null,null,null,"TAMINANGO",null,null,null,"PIEDECUESTA"]
[null,null,null,null,null,null,null,null,null,"LA CEJA",null,null,null,null,null,"PACHAVITA",null,null,null,null,null,null,null,"NILO",null,null,null,null,null,null,"TANGUA",null,null,null,"PINCHOTE"]
[null,null,null,null,null,null,null,null,null,"LA ESTRELLA",null,null,null,null,null,"PÁEZ",null,null,null,null,null,null,null,"NIMAIMA",null,null,null,null,null,null,"TÚQUERRES",null,null,null,"PUENTE NACIONAL"]
[null,null,null,null,null,null,null,null,null,"LA PINTADA",null,null,null,null,null,"PAIPA",null,null,null,null,null,null,null,"NOCAIMA",null,null,null,null,null,null,"YACUANQUER",null,null,null,"PUERTO PARRA"]
[null,null,null,null,null,null,null,null,null,"LA UNIÓN",null,null,null,null,null,"PAJARITO",null,null,null,null,null,null,null,"PACHO",null,null,null,null,null,null,null,null,null,null,"PUERTO WILCHES"]
[null,null,null,null,null,null,null,null,null,"LIBORINA",null,null,null,null,null,"PANQUEBA",null,null,null,null,null,null,null,"PAIME",null,null,null,null,null,null,null,null,null,null,"RIONEGRO"]
[null,null,null,null,null,null,null,null,null,"MACEO",null,null,null,null,null,"PAUNA",null,null,null,null,null,null,null,"PANDI",null,null,null,null,null,null,null,null,null,null,"SABANA DE TORRES"]
[null,null,null,null,null,null,null,null,null,"MARINILLA",null,null,null,null,null,"PAYA",null,null,null,null,null,null,null,"PARATEBUENO",null,null,null,null,null,null,null,null,null,null,"SAN ANDRÉS"]
[null,null,null,null,null,null,null,null,null,"MEDELLÍN",null,null,null,null,null,"PAZ DE RÍO",null,null,null,null,null,null,null,"PASCA",null,null,null,null,null,null,null,null,null,null,"SAN BENITO"]
[null,null,null,null,null,null,null,null,null,"MONTEBELLO",null,null,null,null,null,"PESCA",null,null,null,null,null,null,null,"PUERTO SALGAR",null,null,null,null,null,null,null,null,null,null,"SAN GIL"]
[null,null,null,null,null,null,null,null,null,"MURINDÓ",null,null,null,null,null,"PISBA",null,null,null,null,null,null,null,"PULÍ",null,null,null,null,null,null,null,null,null,null,"SAN JOAQUÍN"]
[null,null,null,null,null,null,null,null,null,"MUTATÁ",null,null,null,null,null,"PUERTO BOYACÁ",null,null,null,null,null,null,null,"QUEBRADANEGRA",null,null,null,null,null,null,null,null,null,null,"SAN JOSÉ DE MIRANDA"]
[null,null,null,null,null,null,null,null,null,"NARIÑO",null,null,null,null,null,"QUÍPAMA",null,null,null,null,null,null,null,"QUETAME",null,null,null,null,null,null,null,null,null,null,"SAN MIGUEL"]
[null,null,null,null,null,null,null,null,null,"NECHÍ",null,null,null,null,null,"RAMIRIQUÍ",null,null,null,null,null,null,null,"QUIPILE",null,null,null,null,null,null,null,null,null,null,"SAN VICENTE DE CHUCURÍ"]
[null,null,null,null,null,null,null,null,null,"NECOCLÍ",null,null,null,null,null,"RÁQUIRA",null,null,null,null,null,null,null,"RICAURTE",null,null,null,null,null,null,null,null,null,null,"SANTA BÁRBARA"]
[null,null,null,null,null,null,null,null,null,"OLAYA",null,null,null,null,null,"RONDÓN",null,null,null,null,null,null,null,"SAN ANTONIO DEL TEQUENDAMA",null,null,null,null,null,null,null,null,null,null,"SANTA HELENA DEL OPÓN"]
[null,null,null,null,null,null,null,null,null,"PEÑOL",null,null,null,null,null,"SABOYÁ",null,null,null,null,null,null,null,"SAN BERNARDO",null,null,null,null,null,null,null,null,null,null,"SIMACOTA"]
[null,null,null,null,null,null,null,null,null,"PEQUE",null,null,null,null,null,"SÁCHICA",null,null,null,null,null,null,null,"SAN CAYETANO",null,null,null,null,null,null,null,null,null,null,"SOCORRO"]
[null,null,null,null,null,null,null,null,null,"PUEBLORRICO",null,null,null,null,null,"SAMACÁ",null,null,null,null,null,null,null,"SAN FRANCISCO",null,null,null,null,null,null,null,null,null,null,"SUAITA"]
[null,null,null,null,null,null,null,null,null,"PUERTO BERRÍO",null,null,null,null,null,"SAN EDUARDO",null,null,null,null,null,null,null,"SAN JUAN DE RIOSECO",null,null,null,null,null,null,null,null,null,null,"SUCRE"]
[null,null,null,null,null,null,null,null,null,"PUERTO NARE",null,null,null,null,null,"SAN JOSÉ DE PARE",null,null,null,null,null,null,null,"SASAIMA",null,null,null,null,null,null,null,null,null,null,"SURATÁ"]
[null,null,null,null,null,null,null,null,null,"PUERTO TRIUNFO",null,null,null,null,null,"SAN LUIS DE GACENO",null,null,null,null,null,null,null,"SESQUILÉ",null,null,null,null,null,null,null,null,null,null,"TONA"]
[null,null,null,null,null,null,null,null,null,"REMEDIOS",null,null,null,null,null,"SAN MATEO",null,null,null,null,null,null,null,"SIBATÉ",null,null,null,null,null,null,null,null,null,null,"VALLE DE SAN JOSÉ"]
[null,null,null,null,null,null,null,null,null,"RETIRO",null,null,null,null,null,"SAN MIGUEL DE SEMA",null,null,null,null,null,null,null,"SILVANIA",null,null,null,null,null,null,null,null,null,null,"VÉLEZ"]
[null,null,null,null,null,null,null,null,null,"RIONEGRO",null,null,null,null,null,"SAN PABLO DE BORBUR",null,null,null,null,null,null,null,"SIMIJACA",null,null,null,null,null,null,null,null,null,null,"VETAS"]
[null,null,null,null,null,null,null,null,null,"SABANALARGA",null,null,null,null,null,"SANTA MARÍA",null,null,null,null,null,null,null,"SOACHA",null,null,null,null,null,null,null,null,null,null,"VILLANUEVA"]
[null,null,null,null,null,null,null,null,null,"SABANETA",null,null,null,null,null,"SANTA ROSA DE VITERBO",null,null,null,null,null,null,null,"SOPÓ",null,null,null,null,null,null,null,null,null,null,"ZAPATOCA"]
[null,null,null,null,null,null,null,null,null,"SALGAR",null,null,null,null,null,"SANTA SOFÍA",null,null,null,null,null,null,null,"SUBACHOQUE"]
[null,null,null,null,null,null,null,null,null,"SAN ANDRÉS DE CUERQUÍA",null,null,null,null,null,"SANTANA",null,null,null,null,null,null,null,"SUESCA"]
[null,null,null,null,null,null,null,null,null,"SAN CARLOS",null,null,null,null,null,"SATIVANORTE",null,null,null,null,null,null,null,"SUPATÁ"]
[null,null,null,null,null,null,null,null,null,"SAN FRANCISCO",null,null,null,null,null,"SATIVASUR",null,null,null,null,null,null,null,"SUSA"]
[null,null,null,null,null,null,null,null,null,"SAN JERÓNIMO",null,null,null,null,null,"SIACHOQUE",null,null,null,null,null,null,null,"SUTATAUSA"]
[null,null,null,null,null,null,null,null,null,"SAN JOSÉ DE LA MONTAÑA",null,null,null,null,null,"SOATÁ",null,null,null,null,null,null,null,"TABIO"]
[null,null,null,null,null,null,null,null,null,"SAN JUAN DE URABÁ",null,null,null,null,null,"SOCHA",null,null,null,null,null,null,null,"TAUSA"]
[null,null,null,null,null,null,null,null,null,"SAN LUIS",null,null,null,null,null,"SOCOTÁ",null,null,null,null,null,null,null,"TENA"]
[null,null,null,null,null,null,null,null,null,"SAN PEDRO DE LOS MILAGROS",null,null,null,null,null,"SOGAMOSO",null,null,null,null,null,null,null,"TENJO"]
[null,null,null,null,null,null,null,null,null,"SAN PEDRO DE URABÁ",null,null,null,null,null,"SOMONDOCO",null,null,null,null,null,null,null,"TIBACUY"]
[null,null,null,null,null,null,null,null,null,"SAN RAFAEL",null,null,null,null,null,"SORA",null,null,null,null,null,null,null,"TIBIRITA"]
[null,null,null,null,null,null,null,null,null,"SAN ROQUE",null,null,null,null,null,"SORACÁ",null,null,null,null,null,null,null,"TOCAIMA"]
[null,null,null,null,null,null,null,null,null,"SAN VICENTE FERRER",null,null,null,null,null,"SOTAQUIRÁ",null,null,null,null,null,null,null,"TOCANCIPÁ"]
[null,null,null,null,null,null,null,null,null,"SANTA BÁRBARA",null,null,null,null,null,"SUSACÓN",null,null,null,null,null,null,null,"TOPAIPÍ"]
[null,null,null,null,null,null,null,null,null,"SANTA FÉ DE ANTIOQUIA",null,null,null,null,null,"SUTAMARCHÁN",null,null,null,null,null,null,null,"UBALÁ"]
[null,null,null,null,null,null,null,null,null,"SANTA ROSA DE OSOS",null,null,null,null,null,"SUTATENZA",null,null,null,null,null,null,null,"UBAQUE"]
[null,null,null,null,null,null,null,null,null,"SANTO DOMINGO",null,null,null,null,null,"TASCO",null,null,null,null,null,null,null,"UNE"]
[null,null,null,null,null,null,null,null,null,"SEGOVIA",null,null,null,null,null,"TENZA",null,null,null,null,null,null,null,"ÚTICA"]
[null,null,null,null,null,null,null,null,null,"SONSÓN",null,null,null,null,null,"TIBANÁ",null,null,null,null,null,null,null,"VENECIA"]
[null,null,null,null,null,null,null,null,null,"SOPETRÁN",null,null,null,null,null,"TIBASOSA",null,null,null,null,null,null,null,"VERGARA"]
[null,null,null,null,null,null,null,null,null,"TÁMESIS",null,null,null,null,null,"TINJACÁ",null,null,null,null,null,null,null,"VIANÍ"]
[null,null,null,null,null,null,null,null,null,"TARAZÁ",null,null,null,null,null,"TIPACOQUE",null,null,null,null,null,null,null,"VILLA DE SAN DIEGO DE UBATÉ"]
[null,null,null,null,null,null,null,null,null,"TARSO",null,null,null,null,null,"TOCA",null,null,null,null,null,null,null,"VILLAGÓMEZ"]
[null,null,null,null,null,null,null,null,null,"TITIRIBÍ",null,null,null,null,null,"TOGÜÍ",null,null,null,null,null,null,null,"VILLAPINZÓN"]
[null,null,null,null,null,null,null,null,null,"TOLEDO",null,null,null,null,null,"TÓPAGA",null,null,null,null,null,null,null,"VILLETA"]
[null,null,null,null,null,null,null,null,null,"TURBO",null,null,null,null,null,"TOTA",null,null,null,null,null,null,null,"VIOTÁ"]
[null,null,null,null,null,null,null,null,null,"URAMITA",null,null,null,null,null,"TUNJA",null,null,null,null,null,null,null,"YACOPÍ"]
[null,null,null,null,null,null,null,null,null,"URRAO",null,null,null,null,null,"TUNUNGUÁ",null,null,null,null,null,null,null,"ZIPACÓN"]
[null,null,null,null,null,null,null,null,null,"VALDIVIA",null,null,null,null,null,"TURMEQUÉ",null,null,null,null,null,null,null,"ZIPAQUIRÁ"]
[null,null,null,null,null,null,null,null,null,"VALPARAÍSO",null,null,null,null,null,"TUTA"]
[null,null,null,null,null,null,null,null,null,"VEGACHÍ",null,null,null,null,null,"TUTAZÁ"]
[null,null,null,null,null,null,null,null,null,"VENECIA",null,null,null,null,null,"ÚMBITA"]
[null,null,null,null,null,null,null,null,null,"VIGÍA DEL FUERTE",null,null,null,null,null,"VENTAQUEMADA"]
[null,null,null,null,null,null,null,null,null,"YALÍ",null,null,null,null,null,"VILLA DE LEYVA"]
[null,null,null,null,null,null,null,null,null,"YARUMAL",null,null,null,null,null,"VIRACACHÁ"]
[null,null,null,null,null,null,null,null,null,"YOLOMBÓ",null,null,null,null,null,"ZETAQUIRA"]
[null,null,null,null,null,null,null,null,null,"YONDÓ"]
[null,null,null,null,null,null,null,null,null,"ZARAGOZA"]

{"sheet":"Cotizacion","index":4,"n_rows":46,"n_cols":23,"rows_kept":46,"cut":false,"hidden":false,"merged":[[38,13,38,14],[37,8,37,9],[37,13,37,14],[38,8,38,9],[11,1,11,3],[24,7,24,8],[13,1,13,3],[13,4,13,8],[15,1,15,15],[22,7,22,8],[18,1,18,2],[20,6,20,7],[22,15,22,16],[20,8,20,15],[23,7,23,8],[22,9,22,12],[24,15,24,16],[23,13,23,14],[24,13,24,14],[23,9,23,12],[24,9,24,12],[23,15,23,16],[22,13,22,14],[11,4,11,8],[0,1,1,15],[3,1,3,15],[5,1,5,3],[5,4,5,8],[5,10,5,11],[5,12,5,15],[7,1,7,3],[7,4,7,8],[7,10,7,11],[7,12,7,15],[9,1,9,3],[9,4,9,8],[9,10,9,11],[9,12,9,15],[25,2,25,6],[18,3,18,4],[20,1,20,2],[20,3,20,4],[22,2,22,6],[24,2,24,6],[23,2,23,6],[45,5,45,6],[39,11,39,12],[39,13,39,14],[27,15,27,16],[28,2,28,6],[28,7,28,8],[28,15,28,16],[27,13,27,14],[28,13,28,14],[27,2,27,6],[27,7,27,8],[38,11,38,12],[37,2,37,5],[37,6,37,7],[37,11,37,12],[35,1,35,14],[42,1,42,7],[43,2,43,6],[38,2,38,5],[38,6,38,7],[44,2,44,6],[29,2,29,6],[29,7,29,8],[29,15,29,16],[29,13,29,14],[25,7,25,8],[25,9,25,12],[26,9,26,12],[27,9,27,12],[28,9,28,12],[29,9,29,12],[25,15,25,16],[26,2,26,6],[26,7,26,8],[26,15,26,16],[25,13,25,14],[26,13,26,14],[30,2,30,6],[30,7,30,8],[30,13,30,14],[30,15,30,16],[31,2,31,6],[31,7,31,8],[31,13,31,14],[31,15,31,16],[30,9,30,12],[31,9,31,12]]}
[null,"Solicitud de Cotización - ERC",null,null,null,null,null,null,null,null,null,null,null,null,null,null,null,{"$f":"H46","v":0}]
[]
[]
[null,"Información de la Entidad Compradora"]
[]
[null,"Nombre de la Entidad:",null,null,{"$f":"IF(SolCotizacion!E6=\"\",\"\",SolCotizacion!E6)","v":""},null,null,null,null,null,"NIT:",null,{"$f":"IF(SolCotizacion!M6=\"\",\"\",SolCotizacion!M6)","v":""}]
[]
[null,"Dirección de la Entidad:",null,null,{"$f":"IF(SolCotizacion!E8=\"\",\"\",SolCotizacion!E8)","v":""},null,null,null,null,null,"Correo de contacto:",null,{"$f":"IF(SolCotizacion!M8=\"\",\"\",SolCotizacion!M8)","v":""}]
[]
[null,"Municipio:",null,null,{"$f":"IF(SolCotizacion!E10=\"\",\"\",SolCotizacion!E10)","v":""},null,null,null,null,null,"Teléfono de contacto:",null,{"$f":"IF(SolCotizacion!M10=\"\",\"\",SolCotizacion!M10)","v":""}]
[]
[null,"Nombre funcionario Comprador:",null,null,{"$f":"IF(SolCotizacion!E12=\"\",\"\",SolCotizacion!E12)","v":""}]
[]
[]
[]
[null,"Resumen de Cotización"]
[]
[]
[null,"Región",null,{"$f":"IF(SolCotizacion!D18=\"\",\"\",SolCotizacion!D18)","v":""}]
[]
[null,"Meses de Tratamiento",null,{"$f":"IF(SolCotizacion!D20=\"\",\"\",SolCotizacion!D20)","v":""},null,null,"Proveedor"]
[]
[null,"Ref. Servicio","Servicio",null,null,null,null,"Modalidad",null,"Número total de Pacientes por mes",null,null,null,"Meses",null,"Precio unitario",null,"Precio Unitario con Gravámenes","Descuento","Precio con descuento","Precio con descuento * meses","Precio con descuento * meses * cantidad","Precio Total"]
[null,1,"Paquete I de promoción, prevención y descarte de diagnóstico de VIH-SIDA",null,null,null,null,"NA",null,null,null,null,null,null,null,null,null,{"$f":"ROUND(P24/(1-R1),2)","v":0},null,{"$f":"ROUND(R24-(R24*S24),2)","v":0},{"$f":"ROUND(T24*N24,2)","v":0},{"$f":"ROUND(U24*J24,2)","v":0},{"$f":"V24","v":0}]
[null,2,"Paquete II de atención a menores de 18 meses hijos de madres que viven con VIH-SIDA o que tengan criterios clínicos sin conocimiento del estado virológico de la madre",null,null,null,null,"Con medicamentos",null,null,null,null,null,null,null,null,null,{"$f":"ROUND(P25/(1-R1),2)","v":0},null,{"$f":"ROUND(R25-(R25*S25),2)","v":0},{"$f":"ROUND(T25*N25,2)","v":0},{"$f":"ROUND(U25*J25,2)","v":0},{"$f":"V25","v":0}]
[null,3,"Paquete II de atención a menores de 18 meses hijos de madres que viven con VIH-SIDA o que tengan criterios clínicos sin conocimiento del estado virológico de la madre",null,null,null,null,"Sin medicamentos"]
[null,4,"Paquete III de atención integral a Pacientes menores de 13 años que viven con VIH-SIDA",null,null,null,null,"Con medicamentos"]
[null,5,"Paquete III de atención integral a Pacientes menores de 13 años que viven con VIH-SIDA",null,null,null,null,"Sin medicamentos"]
[null,6,"Paquete IV de atención ambulatoria para personas que viven con VIH-SIDA mayores de 13 años",null,null,null,null,"Con medicamentos"]
[null,7,"Paquete IV de atención ambulatoria para personas que viven con VIH-SIDA mayores de 13 años",null,null,null,null,"Sin medicamentos"]
[null,8,"Paquete V de atención ambulatoria para gestantes que viven con VIH-SIDA",null,null,null,null,"Con medicamentos"]
[null,9,"Paquete V de atención ambulatoria para gestantes que viven con VIH-SIDA",null,null,null,null,"Sin medicamentos",null,null,null,null,null,null,null,null,null,{"$f":"ROUND(P32/(1-R1),2)","v":0},null,{"$f":"ROUND(R32-(R32*S32),2)","v":0},{"$f":"ROUND(T32*N32,2)","v":0},{"$f":"ROUND(U32*J32,2)","v":0},{"$f":"V32","v":0}]
[null,null,null,null,null,null,null,null,null,null,null,null,null,null,null,null,null,null,null,null,null,"Valor Total",{"$f":"SUM(W24:W32)","v":0}]
[]
[]
[null,"Ubicación de los Pacientes"]
[]
[null,"No.","Tipo de atención integral",null,null,null,"Modalidad",null,"Departamento",null,"Municipio","Rural o Urbana",null,"Cantidad"]
[null,1]
[null,null,null,null,null,null,null,null,null,null,null,"Total",null,{"$f":"SUM(N39:O39)","v":0}]
[]
[]
[null,"Gravámenes adicionales (estampillas)"]
[null,"No","Descripción",null,null,null,null,"Porcentaje"]
[null,1]
[null,null,null,null,null,"Total porcentaje:",null,{"$f":"SUM(H45:H45)","v":0}]

{"sheet":"CSV","index":5,"n_rows":1,"n_cols":8,"rows_kept":1,"cut":false,"hidden":true,"merged":[]}
["Tipo (servicio o artÃ­culo)","Cantidad","CÃ³digo de unidad de medida*","PosiciÃ³n","Precio base","Divisa","DescripciÃ³n","MercancÃ­a"]